[Event "CCT Airthings Masters Play-In 2023"]
[Site "Online"]
[Date "2023.02.03"]
[Round "3"]
[White "Eltaj_Safarli"]
[Black "vi_pranav"]
[Result "1-0"]
[ECO "C47"]
[WhiteElo "2394"]
[BlackElo "2587"]
[Annotator "TA"]
[PlyCount "145"]
[EventDate "2023.02.03"]
[EventType "swiss"]
[EventCountry "NET"]
[SourceTitle "playchess.com"]
[Source "ChessBase"]
[SourceQuality "1"]
[TimeControl "600+2"]

{[%evp 15,145,22,34,11,26,17,34,26,21,23,34,35,28,14,12,0,22,0,0,-27,22,0,10,39,67,54,55,60,291,146,404,108,114,101,99,0,0,0,48,0,0,0,0,0,0,-26,-41,-69,-72,-76,-67,-201,-189,-189,-190,-616,-258,-308,-279,-286,-279,-255,-252,-233,-89,-68,0,0,0,0,0,0,0,0,0,0,0,-260,-260,-2280,-18,-26,8,8,8,8,8,8,8,8,8,8,8,8,8,8,32,33,59,59,59,59,270,167,4291,1950,29954,11281,29967,24,5505,6390,29962,29963,29961,29962,29962,29963,29955,5122,29981,29982,29982,29983,29983,29984,29984,29985,29985,29986,29986,29987]} 1. e4 {[%emt 0:00:04]} e5 {[%emt 0:00:07]} 2. Nf3 {[%emt 0:00:02]} Nc6 {[%emt 0:00:01]} 3. Nc3 {[%emt 0:00:05]} Nf6 {[%emt 0:00:03]} 4. d4 {[%emt 0:00:01]} exd4 {[%emt 0:00:01]} 5. Nxd4 {[%emt 0:00:00]} Bb4 {[%emt 0:00:01]} 6. Nxc6 {[%emt 0:00:01]} bxc6 {[%emt 0:00:00]} 7. Bd3 {[%emt 0:00:01]} d6 {[%emt 0:00:01]} 8. O-O {[%emt 0:00:02]} Ng4 {[%emt 0:00:01] 8...Ng4 scores better than 8...0-0.} 9. h3 {[%emt 0:00:25] C47: Scotch Four Knights and Four Knights with 4 g3.} (9. Na4 {with more complications.} Qh4 10. Bf4 Qf6 11. Bg3) 9... Ne5 {[%emt 0:00:02]} 10. f4 {[%emt 0:00:11][%cal Bf2f4,Bf4f5,Bf5f6][%mdl 32]} Nxd3 {[%emt 0:00:12]} 11. cxd3 {[%emt 0:00:02] White is slightly better.} O-O {[%emt 0:00:00]} 12. f5 {[%emt 0:00:05][%cal Of5f6] [#]} Re8 $146 {[%emt 0:00:21] [#]} ({Predecessor:} 12... d5 13. e5 Re8 14. d4 Bf8 15. f6 g6 16. Bf4 c5 17. Kh1 Rb8 18. dxc5 d4 {0-1 Oganian,M (2437)-Pranav,V (2481) Titled Tuesday intern op 05th Apr Early blitz 2022 (10)}) 13. f6 $1 {[%emt 0:00:04]} g6 {[%emt 0:01:23]} 14. Bh6 {[%emt 0:00:30]} d5 {[%emt 0:00:21]} 15. Qf3 {[%emt 0:00:25]} Rb8 {[%emt 0:01:16]} 16. Kh1 {[%emt 0:00:28]} Bd6 {[%emt 0:00:47]} 17. Rae1 {[%emt 0:00:24]} d4 {[%emt 0:00:40]} (17... Rxb2 $142 18. exd5 cxd5 19. Nxd5 Bb7) 18. Ne2 {[%emt 0:00:20]} Be5 {[%emt 0:00:14]} 19. b3 {[%emt 0:00:12]} Re6 {[%emt 0:00:15][%cal Re6f6]} 20. Bg7 {[%emt 0:01:06] White is more active.} Rb6 {[%emt 0:00:28]} 21. Nf4 {[%emt 0:00:12][%cal Of4g6] aiming for Nxg6!} Rd6 $2 {[%emt 0:00:18]} (21... Rxf6 $14 22. Bxf6 Qxf6) 22. Rc1 {[%emt 0:00:05]} (22. Nxg6 $1 $18 {Threatening mate with Ne7+.} hxg6 23. Qf2 Bxf6 24. Bxf6 Rxf6 25. Qxf6 Qxf6 26. Rxf6) 22... Qe8 {[%emt 0:01:13][%mdl 8192]} (22... Ra6 $2 23. Nxg6 hxg6 24. Qf2 Bxf6 25. Bxf6 Rxf6 26. Qxf6 Qxf6 27. Rxf6) (22... Bxf4 $16 {was necessary.} 23. Qxf4 Re6) 23. Rc5 $2 {[%emt 0:00:12]} (23. Nxg6 $1 $18 {is the precise move to win. White wants to mate with Ne7+.} hxg6 24. Qf2 Bxf6 25. Bxf6) 23... Bxf6 $16 {[%emt 0:00:10]} 24. Bxf6 {[%emt 0:00:06]} Rxf6 {[%emt 0:00:07]} 25. e5 {[%emt 0:00:01]} (25. Qf2 $16) 25... Rf5 $11 {[%emt 0:00:06] ...g5 would be deadly.} 26. g4 $1 {[%emt 0:00:01]} Rxe5 {[%emt 0:00:31]} (26... Rg5 $11 {is superior.}) 27. Rxe5 {[%emt 0:00:02]} (27. Nh5 $1 $14 Rxh5 28. gxh5) 27... Qxe5 {[%emt 0:00:00]} 28. Nxg6 $1 {[%emt 0:00:01][%csl Gf1][%cal Rf3f7]} Qe8 {[%emt 0:00:08]} 29. Nf4 {[%emt 0:01:13]} Bb7 {[%emt 0:00:09] Hoping for ...c5.} 30. Qg3 {[%emt 0:00:02]} c5+ {[%emt 0:00:03]} 31. Kh2 {[%emt 0:00:04]} Rf6 {[%emt 0:00:02][%cal Bb6f6,Bf6e6,Be6e3][%mdl 32]} 32. Re1 {[%emt 0:00:05]} Qc6 {[%emt 0:00:02][%cal Of6f4] And now ...Rxf4! would win.} 33. Nh5 {[%emt 0:00:04]} (33. Re4 $15) 33... Re6 $36 {[%emt 0:00:08][%cal Oe6e2][%mdl 2048] Black is really pushing.} 34. Nf4 {[%emt 0:00:20] Wards off Re2+} Re3 {[%emt 0:00:11]} 35. Qh4 {[%emt 0:00:03]} (35. Qf2) 35... Qd6 {[%emt 0:00:24]} (35... h6 $142 {Strongly threatening ...Qf3.} 36. g5 Rxe1 {[%mdl 64] Deflection} 37. Qxe1 hxg5) 36. Qg5+ {[%emt 0:00:30]} Kf8 {[%emt 0:00:01]} 37. Rxe3 {[%emt 0:00:36]} dxe3 {[%emt 0:00:02][%mdl 4096] Endgame KQB-KQN} 38. Kg3 {[%emt 0:00:00]} h6 {[%emt 0:00:39]} 39. Qf5 {[%emt 0:00:07]} Kg7 {[%emt 0:00:34]} (39... c4 $1 $19 {[%cal Rc4c3]} 40. bxc4 Qb4) 40. g5 $17 {[%emt 0:00:02]} hxg5 {[%emt 0:00:09]} (40... h5 $1 $15) 41. Qxg5+ $11 {[%emt 0:00:00]} Kf8 {[%emt 0:00:01]} 42. h4 $1 {[%emt 0:00:18]} Qc6 {[%emt 0:00:08]} 43. Qd8+ {[%emt 0:00:12]} Kg7 {[%emt 0:00:02]} 44. Nh5+ {[%emt 0:00:07]} Kh7 {[%emt 0:00:03]} 45. Nf6+ {[%emt 0:00:01]} Kg7 {[%emt 0:00:03]} 46. Ne4 $2 {[%emt 0:01:15][%mdl 8192]} (46. Nh5+ $11 Kh7 47. Nf6+ Kg7 48. Ne8+ Kh8 49. Nd6+ Kh7 50. Nxb7) 46... Qg6+ $19 {[%emt 0:00:01]} 47. Ng5 $2 {[%emt 0:00:00]} (47. Kf3 e2 48. Kxe2) 47... e2 $2 {[%emt 0:00:03]} ({Better is} 47... Qf5 $19 {( -> ...Qf2+)} 48. Qxc7 Qf2+ 49. Kg4 Qg2+ 50. Qg3 e2 51. Qxg2 Bxg2) 48. Kf2 $11 {[%emt 0:00:05]} Qd6 {[%emt 0:00:01]} 49. Qxd6 {[%emt 0:00:04]} cxd6 {[%emt 0:00:00]} 50. Kxe2 {[%emt 0:00:03] KB-KN} d5 {[%emt 0:00:06]} 51. Ke3 {[%emt 0:00:16]} Kg6 {[%emt 0:00:02]} 52. Kf4 {[%emt 0:00:03][%cal Oh4h5]} Ba6 {[%emt 0:00:03]} 53. Nf3 {[%emt 0:00:01]} f6 {[%emt 0:00:01]} 54. d4 {[%emt 0:00:06]} c4 {[%emt 0:00:01]} 55. bxc4 {[%emt 0:00:05]} Bxc4 {[%emt 0:00:00]} 56. a3 {[%emt 0:00:01]} a5 {[%emt 0:00:01]} 57. Nd2 {[%emt 0:00:03] Prevents Bb3.} Ba2 {[%emt 0:00:05]} 58. Kg4 {[%emt 0:00:24]} a4 $2 {[%emt 0:00:02]} ({Black should try} 58... Bc4 $14) 59. Nf1 $1 $18 {[%emt 0:00:14] h5+ is the strong threat.} Bc4 $2 {[%emt 0:00:02]} (59... Bb1 60. Ne3 Be4 61. h5+ Kf7) 60. Ne3 {[%emt 0:00:01] Threatens to win with h5+.} Be2+ {[%emt 0:00:03]} 61. Kf4 {[%emt 0:00:00]} Bc4 {[%emt 0:00:01]} 62. Ng4 $2 {[%emt 0:00:22]} (62. Nxc4 $1 {mates} dxc4 63. d5 f5 64. Ke3 c3 65. Kd3 Kf6 66. h5 Kg5 67. Kxc3) 62... Bb3 $2 {[%emt 0:00:03][%mdl 8192] [#]} (62... Be2 $11) 63. h5+ $1 {[%emt 0:00:02][%mdl 576] Decoy} Kxh5 {[%emt 0:00:01]} (63... Kf7 64. Ne3) 64. Nxf6+ {[%emt 0:00:01]} Kg6 {[%emt 0:00:00]} 65. Ke5 {[%emt 0:00:01]} Kf7 {[%emt 0:00:02]} 66. Nxd5 {[%emt 0:00:00]} Ke8 {[%emt 0:00:03]} 67. Kd6 {[%emt 0:00:03] White threatens Nc3 and mate.} Bxd5 {[%emt 0:00:01]} 68. Kxd5 {[%emt 0:00:01] KPP-KP. White mates.} Kd7 {[%emt 0:00:01] [#]} 69. Kc5 $1 {[%emt 0:00:01]} Kc7 {[%emt 0:00:01]} 70. Kb5 {[%emt 0:00:01]} Kd6 {[%emt 0:00:03]} 71. Kxa4 {[%emt 0:00:01]} Kd5 {[%emt 0:00:01]} 72. Kb5 {[%emt 0:00:01]} Kxd4 {[%emt 0:00:00]} 73. a4 {[%emt 0:00:01] What a fight!   Weighted Error Value: White=0.47/Black=0.54} 1-0

[Event "CCT Airthings Masters Play-In 2023"]
[Site "Online"]
[Date "2023.02.03"]
[Round "3"]
[White "BrandonJacobson"]
[Black "Fandorine"]
[Result "0-1"]
[ECO "A05"]
[WhiteElo "2374"]
[BlackElo "2551"]
[Annotator "TA"]
[PlyCount "78"]
[EventDate "2023.02.03"]
[EventType "swiss"]
[EventCountry "NET"]
[SourceTitle "playchess.com"]
[Source "ChessBase"]
[SourceQuality "1"]
[TimeControl "600+2"]

{[%evp 9,78,-25,-22,-10,0,5,16,0,43,39,38,37,37,-2,2,-12,-18,-27,-24,-26,-14,-2,26,-33,-30,-32,-29,-37,-31,-30,0,-37,-16,-83,-25,-80,-83,-122,-95,-83,-68,-61,-64,-168,-113,-120,-69,-115,-95,-308,-291,-309,-317,-367,-336,-338,-217,-212,-206,-203,-184,-297,0,0,295,285,234,0,0,-1647,-1590]} 1. Nf3 {[%emt 0:00:03]} Nf6 {[%emt 0:00:04]} 2. g3 {[%emt 0:00:00]} g6 {[%emt 0:00:01]} 3. b3 {[%emt 0:00:01]} d5 {[%emt 0:00:01]} 4. c4 {[%emt 0:00:24]} d4 {[%emt 0:00:03]} 5. b4 {[%emt 0:00:00] [#]} c5 $1 {[%emt 0:00:08]} 6. bxc5 {[%emt 0:00:04] A05: Réti Opening: 1 Nf3 Nf6.} Bg7 {[%emt 0:00:03]} 7. Bg2 {[%emt 0:00:07]} O-O {[%emt 0:00:03]} 8. O-O {[%emt 0:00:08] [#] The position is equal.} Re8 $146 {[%emt 0:00:29]} ({Predecessor:} 8... Nc6 9. d3 Nd7 10. Ba3 e5 11. Nbd2 f5 12. Ne1 Qe7 13. Nc2 a5 14. e3 e4 15. dxe4 {1-0 Jacobson,B (2544)-Andersen,G (2236) World op 50th 2022 (2)}) 9. d3 {[%emt 0:00:08]} Nfd7 {[%emt 0:00:25]} 10. Ba3 {[%emt 0:00:31]} Na6 {[%emt 0:00:37]} 11. c6 {[%emt 0:00:31]} bxc6 {[%emt 0:00:04]} 12. Nbd2 {[%emt 0:00:01]} Rb8 {[%emt 0:01:11]} 13. Qa4 {[%emt 0:00:47][%cal Oa1b1]} c5 {[%emt 0:00:15]} 14. Rab1 {[%emt 0:00:25]} Rb6 {[%emt 0:00:10]} 15. Rb5 {[%emt 0:03:40]} Bb7 {[%emt 0:01:57]} 16. Ne1 {[%emt 0:00:35]} (16. Rxb6 $1 $11 axb6 17. Nxd4 Bxg2 18. Kxg2) 16... Qc8 $15 {[%emt 0:00:41]} 17. Nb3 {[%emt 0:00:01]} Bxg2 {[%emt 0:00:31]} 18. Nxg2 {[%emt 0:00:02]} e5 {[%emt 0:00:07]} 19. e4 {[%emt 0:01:21]} f5 {[%emt 0:02:15]} 20. f3 {[%emt 0:00:53]} Rf8 {[%emt 0:00:01] White should prevent ...fxe4.} 21. Ne1 {[%emt 0:00:15]} (21. exf5 $11 {remains equal.} gxf5 22. Re1) 21... h5 {[%emt 0:00:06]} (21... fxe4 $17 {Hoping for ...e3.} 22. dxe4 Rbf6) 22. Bc1 {[%emt 0:00:06]} (22. Rxb6 $11 axb6 23. exf5) 22... f4 $17 {[%emt 0:00:18]} 23. Ng2 {[%emt 0:00:24]} fxg3 {[%emt 0:00:11]} 24. hxg3 {[%emt 0:00:01]} Rbf6 {[%emt 0:00:00]} 25. Nh4 {[%emt 0:00:02]} Nb4 {[%emt 0:00:14]} 26. Rxb4 {[%emt 0:00:16] [#]} (26. Qxa7 $15 Nxd3 27. Qb7) 26... cxb4 {[%emt 0:00:23]} (26... Ra6 $1 $19 {[%cal Ra6a4]} 27. Qb5 (27. Nxg6 $2 Rxg6 28. Kh2 cxb4 $19) 27... Rb6) 27. Qxb4 {[%emt 0:00:00]} Rb6 {[%emt 0:00:03]} ({Better is} 27... Ra6 $17) 28. Qa5 {[%emt 0:00:06]} (28. Qd2 $1 $15 {might be stronger.}) 28... Kh7 {[%emt 0:00:05]} 29. Ba3 $2 {[%emt 0:00:05]} (29. Bg5 $17) 29... Ra6 $1 $19 {[%emt 0:00:08]} 30. Qb4 {[%emt 0:00:00]} Rff6 {[%emt 0:00:00]} 31. c5 {[%emt 0:00:02] Dodges Rfb6} ({Much weaker is} 31. Qe7 Kh8 32. Qb4 Rfb6 $19) 31... Qc6 {[%emt 0:00:08] Threatens to win with ...Ra4.} 32. Nd2 {[%emt 0:00:02]} Rf8 {[%emt 0:00:07] ...Rb8 is the strong threat.} 33. Nc4 {[%emt 0:00:01]} Rb8 {[%emt 0:00:04][%mdl 64] Deflection} 34. Qd2 {[%emt 0:00:03]} Nxc5 {[%emt 0:00:02]} 35. Qg5 {[%emt 0:00:05]} (35. Bxc5 $142 Qxc5 36. f4) 35... Nxd3 $2 {[%emt 0:00:05]} (35... Rxa3 $19 36. Nxa3 Nxd3) 36. Nd6 $1 $11 {[%emt 0:00:01]} Qxd6 {[%emt 0:00:06][%mdl 8192]} (36... Rxa3 $2 37. Qxg6+ Kg8 38. Qe6+ Kh7 39. Qg6+ Kg8 40. Qf7+ Kh7 41. Qg6+ $18 (41. Qxh5+ Kg8 $18)) (36... Rb7 $11 {and Black stays safe.}) 37. Bxd6 $18 {[%emt 0:00:00]} Rxd6 {[%emt 0:00:00] [#]} 38. g4 $2 {[%emt 0:00:02]} ({White should try} 38. f4 $1 $18 {[%cal Rf4f5]} exf4 39. gxf4) 38... Nf4 {[%emt 0:00:05]} 39. Kh2 {[%emt 0:00:05][%mdl 8192] Inhibits Nh3. White is weak on the dark squares} (39. Qe7 $11 Rdb6 40. gxh5 (40. Qxa7 R8b7 $19)) 39... Bf6 {[%emt 0:00:01] Black used his chance.   Weighted Error Value: White=0.52/Black=0.41} 0-1

[Event "CCT Airthings Masters Play-In 2023"]
[Site "Online"]
[Date "2023.02.03"]
[Round "3"]
[White "kpio91"]
[Black "LevonAronian"]
[Result "0-1"]
[ECO "C78"]
[WhiteElo "2373"]
[BlackElo "2757"]
[Annotator "NA"]
[PlyCount "80"]
[EventDate "2023.02.03"]
[EventType "swiss"]
[EventCountry "NET"]
[SourceTitle "playchess.com"]
[Source "ChessBase"]
[SourceQuality "1"]
[TimeControl "600+2"]

1. e4 {[%emt 0:00:03]} e5 {[%emt 0:00:06]} 2. Nf3 {[%emt 0:00:05]} Nc6 {[%emt 0:00:01]} 3. Bb5 {[%emt 0:00:02]} a6 {[%emt 0:00:02]} 4. Ba4 {[%emt 0:00:03]} Nf6 {[%emt 0:00:01]} 5. O-O {[%emt 0:00:03]} b5 {[%emt 0:00:01]} 6. Bb3 {[%emt 0:00:02]} Bc5 {[%emt 0:00:01]} 7. d3 {[%emt 0:00:41]} d6 {[%emt 0:00:03]} 8. c3 {[%emt 0:00:19]} Bb6 {[%emt 0:00:03]} 9. Be3 {[%emt 0:00:04]} Rb8 {[%emt 0:00:05]} 10. Nbd2 {[%emt 0:00:03]} O-O {[%emt 0:00:02]} 11. Re1 {[%emt 0:00:03]} Ne7 {[%emt 0:00:01]} 12. Nf1 {[%emt 0:00:11]} Ng6 {[%emt 0:00:03]} 13. Ng3 {[%emt 0:00:04]} Bxe3 {[%emt 0:00:09]} 14. Rxe3 {[%emt 0:00:02]} c5 {[%emt 0:00:01]} 15. h3 {[%emt 0:00:18]} Qc7 {[%emt 0:00:27]} 16. Bc2 {[%emt 0:00:59]} a5 {[%emt 0:00:11]} 17. a4 {[%emt 0:00:08]} b4 {[%emt 0:00:05]} 18. Nd2 {[%emt 0:00:01]} Be6 {[%emt 0:00:06]} 19. Re1 {[%emt 0:00:31]} Rfe8 {[%emt 0:00:15]} 20. Ngf1 {[%emt 0:00:15]} d5 {[%emt 0:00:07]} 21. exd5 {[%emt 0:01:27]} Nxd5 {[%emt 0:00:02]} 22. Nc4 {[%emt 0:00:05]} Ndf4 {[%emt 0:00:39]} 23. Nfe3 {[%emt 0:00:46]} Red8 {[%emt 0:00:02]} 24. cxb4 {[%emt 0:01:34]} axb4 {[%emt 0:00:49]} 25. b3 {[%emt 0:01:12]} e4 {[%emt 0:00:06]} 26. Qd2 {[%emt 0:00:14]} Nxd3 {[%emt 0:00:23]} 27. Bxd3 {[%emt 0:00:09]} Rxd3 {[%emt 0:00:03]} 28. Qc2 {[%emt 0:00:20]} Nf4 {[%emt 0:00:09]} 29. Ng4 {[%emt 0:00:12]} f5 {[%emt 0:00:37]} 30. Nge5 {[%emt 0:00:12]} Rc3 {[%emt 0:00:01]} 31. Qd2 {[%emt 0:00:07]} Nd3 {[%emt 0:00:12]} 32. Nxd3 {[%emt 0:00:03]} Rxd3 {[%emt 0:00:01]} 33. Qxd3 {[%emt 0:00:01]} exd3 {[%emt 0:00:04]} 34. Rxe6 {[%emt 0:00:00]} Rd8 {[%emt 0:00:18]} 35. Rd1 {[%emt 0:00:07]} Qf4 {[%emt 0:00:17]} 36. a5 {[%emt 0:00:19]} Qd4 {[%emt 0:00:02]} 37. Rde1 {[%emt 0:00:22]} Qc3 {[%emt 0:00:10]} 38. a6 {[%emt 0:00:01]} d2 {[%emt 0:00:29]} 39. Rd1 {[%emt 0:00:09]} Qc1 {[%emt 0:00:15]} 40. Ne3 {[%emt 0:00:03]} f4 {[%emt 0:00:01]} 0-1

[Event "CCT Airthings Masters Play-In 2023"]
[Site "Online"]
[Date "2023.02.03"]
[Round "3"]
[White "VitaliyBernadskiy"]
[Black "Sanan_Sjugirov"]
[Result "1/2-1/2"]
[ECO "B52"]
[WhiteElo "2341"]
[BlackElo "2546"]
[Annotator "TA"]
[PlyCount "161"]
[EventDate "2023.02.03"]
[EventType "swiss"]
[EventCountry "NET"]
[SourceTitle "playchess.com"]
[Source "ChessBase"]
[SourceQuality "1"]
[TimeControl "600+2"]

{[%evp 19,161,22,22,18,19,28,24,0,0,-21,0,0,0,0,-9,-8,0,0,0,-9,-11,-18,0,0,14,0,-8,-6,0,-10,0,0,0,0,0,0,9,0,81,88,116,111,109,108,143,142,246,258,264,160,244,219,200,154,147,171,192,200,211,201,201,184,185,165,172,172,201,193,173,182,169,170,656,636,505,254,776,141,140,152,141,128,168,128,128,128,128,128,128,0,0,0,0,0,0,0,121,0,0,0,0,-30,-30,-30,0,-30,0,0,0,0,0,0,0,0,0,0,0,0,0,0,0,0,0,0,0,0,0,0,0,-12850,0,0,0,0,0,0,0,0,0,0,0,0,0,0]} 1. e4 {[%emt 0:00:03]} c5 {[%emt 0:00:06]} 2. Nf3 {[%emt 0:00:01]} d6 {[%emt 0:00:02]} 3. Bb5+ {[%emt 0:00:10]} Bd7 {[%emt 0:00:01]} 4. Bxd7+ {[%emt 0:00:01]} Qxd7 {[%emt 0:00:00]} 5. c4 {[%emt 0:00:07]} Nf6 {[%emt 0:00:02]} 6. Nc3 {[%emt 0:00:01]} g6 {[%emt 0:00:01]} 7. d4 {[%emt 0:00:02]} cxd4 {[%emt 0:00:01]} 8. Nxd4 {[%emt 0:00:01]} Nc6 {[%emt 0:00:01]} 9. f3 {[%emt 0:00:25]} Bg7 {[%emt 0:00:02]} 10. Be3 {[%emt 0:00:02]} O-O {[%emt 0:00:01]} 11. Rc1 {[%emt 0:00:19] B52: Sicilian: Moscow Variation with 3...Bd7.} Rfc8 {[%emt 0:00:22]} 12. b3 {[%emt 0:00:07]} a6 {[%emt 0:00:37]} 13. Na4 {[%emt 0:00:27] Threatens to win with Nb6. White has an edge.} Qd8 {[%emt 0:00:01][%cal Ob7b5] Repels Nb6} 14. O-O {[%emt 0:00:15]} Nd7 {[%emt 0:00:10]} 15. Nc3 {[%emt 0:00:28] [#]} b5 $146 {[%emt 0:00:54]} ({Predecessor:} 15... Nxd4 16. Bxd4 Bxd4+ 17. Qxd4 Qb6 18. Qxb6 Nxb6 19. Rfd1 Rc5 20. Kf2 Rac8 21. Ke3 Kf8 {0-1 Deac,B (2643)-Nenezic,M (2521) Speed Chess Super Swiss blitz 2021 (6)}) 16. cxb5 {[%emt 0:00:26]} Nxd4 {[%emt 0:00:04]} 17. Bxd4 {[%emt 0:00:01]} Bxd4+ {[%emt 0:00:01]} 18. Qxd4 {[%emt 0:00:02]} axb5 {[%emt 0:00:00]} 19. Rc2 {[%emt 0:00:29]} Rc5 {[%emt 0:00:29]} 20. Re2 {[%emt 0:01:30]} Rac8 {[%emt 0:02:14]} 21. Nd5 {[%emt 0:00:04]} Rc2 {[%emt 0:00:08]} 22. Qd1 {[%emt 0:00:44]} Rxe2 {[%emt 0:00:19]} 23. Qxe2 {[%emt 0:00:00]} e6 {[%emt 0:00:09]} 24. Nb4 {[%emt 0:00:01]} Qa5 {[%emt 0:00:31]} 25. Qd2 {[%emt 0:00:02]} Qb6+ {[%emt 0:01:55]} 26. Kh1 {[%emt 0:00:02]} Qc5 {[%emt 0:00:10]} 27. Rd1 {[%emt 0:00:12][%cal Bf1d1,Bd1d2,Bd2c2,Bc2c5][%mdl 32]} Nf6 {[%emt 0:00:18]} 28. h3 {[%emt 0:01:12]} (28. Qxd6 $2 Qxd6 $19) 28... Nh5 {[%emt 0:00:18]} (28... Ne8 $11 {remains equal.}) 29. Qxd6 $16 {[%emt 0:01:03]} Qf2 {[%emt 0:00:03]} 30. Kh2 {[%emt 0:00:13] Prevents Ng3} g5 {[%emt 0:01:04]} 31. Rd2 $36 {[%emt 0:00:27][%mdl 2048] White is in control.} Qe1 {[%emt 0:00:10]} 32. Rc2 {[%emt 0:00:05]} Re8 {[%emt 0:00:18]} (32... Rf8 $16 33. Nc6 h6) 33. Nd3 $18 {[%emt 0:00:40]} Qd1 {[%emt 0:00:14]} 34. Rc5 {[%emt 0:00:03]} Qd2 {[%emt 0:00:04]} (34... h6 $16 35. Rxb5 Qd2) 35. Qd7 {[%emt 0:00:12]} (35. Rxb5 $6 h6 36. Rb6 Rc8) 35... Rf8 {[%emt 0:00:13]} 36. Qxb5 {[%emt 0:00:04]} (36. Rxb5 $2 g4 37. h4 (37. Rxh5 $2 {too greedy.} gxf3 38. Kg3 Qxg2+ 39. Kh4 f2 $19) (37. fxg4 $2 Nf4 $19) 37... h6 $19) 36... h6 {[%emt 0:00:03][%cal Of8d8] Strongly threatening ...Rd8!} 37. Qc4 $1 {[%emt 0:00:27]} Rd8 {[%emt 0:00:06]} 38. Rc8 {[%emt 0:00:02]} Rxc8 {[%emt 0:00:01]} 39. Qxc8+ {[%emt 0:00:00][%mdl 4096] Endgame KQN-KQN} Kg7 {[%emt 0:00:01]} 40. Qc4 {[%emt 0:00:03]} Qxa2 {[%emt 0:00:06]} 41. e5 {[%emt 0:00:03]} Qd2 {[%emt 0:00:01]} 42. b4 {[%emt 0:00:05]} Qe2 {[%emt 0:00:01][%cal Oh5f4] ...Nf4! is the strong threat.} 43. Qd4 {[%emt 0:00:12] Inhibits Nf4.} Qd2 {[%emt 0:00:02] aiming for ...Nf4.} 44. Qe4 {[%emt 0:00:08] And now b5 would win.} Qc3 {[%emt 0:00:03]} 45. h4 {[%emt 0:00:12]} Qd2 $2 {[%emt 0:00:02]} (45... Kg8 46. Qa8+ Kh7 47. Qe4+ Kg8) 46. b5 {[%emt 0:00:05] Black must now prevent b6.} Qa5 {[%emt 0:00:03]} 47. hxg5 {[%emt 0:00:07]} Qxb5 $2 {[%emt 0:00:01]} (47... hxg5 48. Qb4 Qb6) 48. gxh6+ $2 {[%emt 0:00:04]} (48. g4 $18 {is the precise move to win.}) 48... Kxh6 $16 {[%emt 0:00:00]} 49. g4 {[%emt 0:00:02]} Ng7 {[%emt 0:00:01]} 50. Nf2 {[%emt 0:00:04][%cal Og4g5] g5+! would kill now.} Qb2 {[%emt 0:00:01]} 51. Kg3 {[%emt 0:00:00][%cal Og4g5] White wants to mate with g5+!} Ne8 {[%emt 0:00:02] Repels g5+} 52. Qf4+ {[%emt 0:00:05]} Kg7 {[%emt 0:00:00]} 53. Ne4 {[%emt 0:00:01]} Qd4 {[%emt 0:00:02]} 54. Ng5 {[%emt 0:00:02]} (54. Kh3 $16) 54... Qg1+ $11 {[%emt 0:00:01]} 55. Kh3 {[%emt 0:00:00]} Qh1+ {[%emt 0:00:02]} 56. Qh2 {[%emt 0:00:02]} Qf1+ {[%emt 0:00:01]} 57. Qg2 {[%emt 0:00:00]} Qe1 {[%emt 0:00:02] [#]} (57... Qc1 $11 58. Ne4 Nc7) 58. Ne4 {[%emt 0:00:05]} (58. f4 $1 $16) 58... Nc7 {[%emt 0:00:02]} 59. g5 {[%emt 0:00:04]} Nd5 {[%emt 0:00:01] Hoping for ...Nf4+.} 60. Qg3 {[%emt 0:00:02] Against Nf4+} Qh1+ {[%emt 0:00:02][%mdl 1024] Black has compensation.} 61. Kg4 {[%emt 0:00:01]} Ne3+ {[%emt 0:00:01]} 62. Kf4 {[%emt 0:00:00]} Nd5+ {[%emt 0:00:02]} 63. Kg4 {[%emt 0:00:01]} Qh7 {[%emt 0:00:01]} (63... Kg6 $5 64. Qf2 $8 Qh5+ 65. Kg3 Qh1 $11) 64. Nf6 {[%emt 0:00:03]} Ne3+ {[%emt 0:00:12]} 65. Kf4 {[%emt 0:00:01]} Qd3 {[%emt 0:00:00]} 66. Ne4 {[%emt 0:00:04]} (66. Qh2 $5 {[%cal Rh2h6]} Qd4+ 67. Ne4 $11) 66... Nf5 {[%emt 0:00:04]} 67. Qh3 {[%emt 0:00:04]} Qe3+ {[%emt 0:00:01]} 68. Kg4 {[%emt 0:00:00]} Qg1+ {[%emt 0:00:01]} 69. Kf4 {[%emt 0:00:01]} ({Much worse is} 69. Kh5 Nd4 $17) 69... Qc1+ {[%emt 0:00:01]} (69... Kg6 $5) 70. Kg4 {[%emt 0:00:01]} Qg1+ {[%emt 0:00:02]} 71. Kf4 {[%emt 0:00:01]} ({But not} 71. Kh5 Nd4 $17) 71... Qe3+ {[%emt 0:00:04]} (71... Kg6 $5) 72. Kg4 {[%emt 0:00:01]} Qc1 {[%emt 0:00:02]} 73. Qh2 {[%emt 0:00:06]} Ne3+ {[%emt 0:00:03]} 74. Kh5 $2 {[%emt 0:00:01][%mdl 8192] [#]} (74. Kh4 $11) 74... Nf5 $2 {[%emt 0:00:01]} (74... Qc8 $1 $19 {[%cal Rc8h8]} 75. Kh4 Qh8+ 76. Kg3 Nf1+ 77. Kg2 Nxh2) 75. Kg4 {[%emt 0:00:01] The position is equal.} Qf1 {[%emt 0:00:03]} 76. Kf4 {[%emt 0:00:05]} Qd3 {[%emt 0:00:02]} 77. Nf6 {[%emt 0:00:03] Intending Qh7+ and mate. Really sharp!} Qe3+ {[%emt 0:00:03]} 78. Kg4 {[%emt 0:00:01] White threatens Qh7+ and mate.} Qd4+ {[%emt 0:00:01]} 79. Ne4 {[%emt 0:00:02]} Qd1 {[%emt 0:00:02]} 80. Kf4 {[%emt 0:00:01]} Qc1+ {[%emt 0:00:01]} 81. Kg4 {[%emt 0:00:01] Quite a comeback for White.   Weighted Error Value: White=0.29 (precise) /Black=0.28 (precise)} 1/2-1/2